{"text_format":"1","workbook":"xlsx","n_sheets":4,"sheets":["Data","Fitre","TCD","Tableau de Bord"],"not_rendered":{"charts":11,"images":23,"macros":1,"external_links":0,"defined_names":4,"comments":0,"pivot_tables":11},"unopened":[],"bounds":{"document_bytes":16777216,"sheet_cells":100000,"rows_first":2000,"rows_last":500,"rows_between":2000,"halvings":0,"cell_chars":16384,"cell_head_chars":4096},"cells_cut":0,"cells_raw":0,"read":"whole","date_system":"1900"}

{"sheet":"Data","index":0,"n_rows":87,"n_cols":20,"rows_kept":87,"cut":false,"hidden":false,"merged":[]}
["ID_Abattage","Date_abattage","Année","Mois","Jours","Qté_livrée","Acheteur","Qté_carcasses_SIVAC","Poids_net_kg","Poids net GID (kg) 2","ECART (Kg)","Taux de ressuage","FIRCA","INTER PORCI","Prix_unitaire_FCFA","Prix_global_FCFA","Avance_FCFA","Reste_a_payer_FCFA","Delai_paiement","Pilote_SICS"]
[1,"2025-03-01",{"$f":"YEAR(Data[[#This Row],[Date_abattage]])","v":2025},{"$f":"TEXT(Data[[#This Row],[Date_abattage]],\"mmmm\")","v":"mars"},{"$f":"DAY(Data[[#This Row],[Date_abattage]])","v":1},4,"Boucherie ",4,250,null,null,null,null,null,2000,{"$f":"I2*O2","v":500000},100000,{"$f":"P2-Q2","v":400000},"2025-02-01","Paul"]
[2,"2025-03-01",{"$f":"YEAR(Data[[#This Row],[Date_abattage]])","v":2025},{"$f":"TEXT(Data[[#This Row],[Date_abattage]],\"mmmm\")","v":"mars"},{"$f":"DAY(Data[[#This Row],[Date_abattage]])","v":1},3,"Marché ",3,180,null,null,null,null,null,2000,360000,0,{"$f":"P3-Q3","v":360000},"2025-02-02","Paul"]
[3,"2025-03-02",{"$f":"YEAR(Data[[#This Row],[Date_abattage]])","v":2025},{"$f":"TEXT(Data[[#This Row],[Date_abattage]],\"mmmm\")","v":"mars"},{"$f":"DAY(Data[[#This Row],[Date_abattage]])","v":2},5,"SOCIAM",5,320,null,null,null,null,null,2000,{"$f":"I4*O4","v":640000},200000,{"$f":"P4-Q4","v":440000},"2025-02-03","Paul"]
[4,"2025-03-02",{"$f":"YEAR(Data[[#This Row],[Date_abattage]])","v":2025},{"$f":"TEXT(Data[[#This Row],[Date_abattage]],\"mmmm\")","v":"mars"},{"$f":"DAY(Data[[#This Row],[Date_abattage]])","v":2},2,"Gros ",2,140,null,null,null,null,null,2000,280000,100000,180000,"2025-02-04","Paul"]
[5,"2025-03-03",{"$f":"YEAR(Data[[#This Row],[Date_abattage]])","v":2025},{"$f":"TEXT(Data[[#This Row],[Date_abattage]],\"mmmm\")","v":"mars"},{"$f":"DAY(Data[[#This Row],[Date_abattage]])","v":3},6,"Marché ",6,390,null,null,null,null,null,2000,780000,250000,530000,"2025-02-05","Paul"]
[6,"2025-03-03",{"$f":"YEAR(Data[[#This Row],[Date_abattage]])","v":2025},{"$f":"TEXT(Data[[#This Row],[Date_abattage]],\"mmmm\")","v":"mars"},{"$f":"DAY(Data[[#This Row],[Date_abattage]])","v":3},4,"Boucherie ",4,250,null,null,null,null,null,2000,500000,100000,{"$f":"P7-Q7","v":400000},"2025-02-06","Paul"]
[7,"2025-03-03",{"$f":"YEAR(Data[[#This Row],[Date_abattage]])","v":2025},{"$f":"TEXT(Data[[#This Row],[Date_abattage]],\"mmmm\")","v":"mars"},{"$f":"DAY(Data[[#This Row],[Date_abattage]])","v":3},3,"Marché ",3,180,null,null,null,null,null,2000,360000,0,{"$f":"P8-Q8","v":360000},"2025-02-07","Paul"]
[8,"2025-03-10",{"$f":"YEAR(Data[[#This Row],[Date_abattage]])","v":2025},{"$f":"TEXT(Data[[#This Row],[Date_abattage]],\"mmmm\")","v":"mars"},{"$f":"DAY(Data[[#This Row],[Date_abattage]])","v":10},5,"SOCIAM",5,320,null,null,null,null,null,2000,640000,200000,{"$f":"P9-Q9","v":440000},"2025-02-08","Paul"]
[9,"2025-03-10",{"$f":"YEAR(Data[[#This Row],[Date_abattage]])","v":2025},{"$f":"TEXT(Data[[#This Row],[Date_abattage]],\"mmmm\")","v":"mars"},{"$f":"DAY(Data[[#This Row],[Date_abattage]])","v":10},2,"Gros ",2,140,null,null,null,null,null,2000,280000,100000,{"$f":"P10-Q10","v":180000},"2025-02-09","Paul"]
[10,"2025-03-17",{"$f":"YEAR(Data[[#This Row],[Date_abattage]])","v":2025},{"$f":"TEXT(Data[[#This Row],[Date_abattage]],\"mmmm\")","v":"mars"},{"$f":"DAY(Data[[#This Row],[Date_abattage]])","v":17},6,"Marché ",6,390,null,null,null,null,null,2000,780000,250000,530000,"2025-02-10","Paul"]
[11,"2025-03-17",{"$f":"YEAR(Data[[#This Row],[Date_abattage]])","v":2025},{"$f":"TEXT(Data[[#This Row],[Date_abattage]],\"mmmm\")","v":"mars"},{"$f":"DAY(Data[[#This Row],[Date_abattage]])","v":17},4,"Boucherie ",4,250,null,null,null,null,null,2000,500000,100000,{"$f":"P12-Q12","v":400000},"2025-02-11","Paul"]
[12,"2025-03-17",{"$f":"YEAR(Data[[#This Row],[Date_abattage]])","v":2025},{"$f":"TEXT(Data[[#This Row],[Date_abattage]],\"mmmm\")","v":"mars"},{"$f":"DAY(Data[[#This Row],[Date_abattage]])","v":17},3,"Marché ",3,180,null,null,null,null,null,2000,360000,0,{"$f":"P13-Q13","v":360000},"2025-02-12","Paul"]
[13,"2025-03-24",{"$f":"YEAR(Data[[#This Row],[Date_abattage]])","v":2025},{"$f":"TEXT(Data[[#This Row],[Date_abattage]],\"mmmm\")","v":"mars"},{"$f":"DAY(Data[[#This Row],[Date_abattage]])","v":24},5,"SOCIAM",5,320,null,null,null,null,null,2000,640000,200000,{"$f":"P14-Q14","v":440000},"2025-02-13","Paul"]
[14,"2025-03-24",{"$f":"YEAR(Data[[#This Row],[Date_abattage]])","v":2025},{"$f":"TEXT(Data[[#This Row],[Date_abattage]],\"mmmm\")","v":"mars"},{"$f":"DAY(Data[[#This Row],[Date_abattage]])","v":24},2,"Gros ",2,140,null,null,null,null,null,2000,280000,100000,{"$f":"P15-Q15","v":180000},"2025-02-14","Paul"]
[15,"2025-03-24",{"$f":"YEAR(Data[[#This Row],[Date_abattage]])","v":2025},{"$f":"TEXT(Data[[#This Row],[Date_abattage]],\"mmmm\")","v":"mars"},{"$f":"DAY(Data[[#This Row],[Date_abattage]])","v":24},6,"Marché ",6,390,null,null,null,null,null,2000,780000,250000,530000,"2025-02-15","Paul"]
[16,"2025-03-24",{"$f":"YEAR(Data[[#This Row],[Date_abattage]])","v":2025},{"$f":"TEXT(Data[[#This Row],[Date_abattage]],\"mmmm\")","v":"mars"},{"$f":"DAY(Data[[#This Row],[Date_abattage]])","v":24},{"$f":"80+6+8","v":94},"BAZ",8,602,null,null,null,null,null,2200,{"$f":"H17*O17","v":17600},17600,{"$f":"P17-Q17","v":0},"2025-02-16","Marc"]
[17,"2025-03-24",{"$f":"YEAR(Data[[#This Row],[Date_abattage]])","v":2025},{"$f":"TEXT(Data[[#This Row],[Date_abattage]],\"mmmm\")","v":"mars"},{"$f":"DAY(Data[[#This Row],[Date_abattage]])","v":24},{"$f":"80+6+8","v":94},"BCS",5,390.2,null,null,null,null,null,2200,{"$f":"H18*O18","v":11000},11000,0,"2025-02-17","Marc"]
[18,"2025-04-01",{"$f":"YEAR(Data[[#This Row],[Date_abattage]])","v":2025},{"$f":"TEXT(Data[[#This Row],[Date_abattage]],\"mmmm\")","v":"avril"},{"$f":"DAY(Data[[#This Row],[Date_abattage]])","v":1},94,"GID",56,4477.8,4442.8,{"$f":"I19-J19","v":35},{"$f":"+K19/I19","v":7.8163383804546877E-3},{"$f":"+H19*200","v":11200},{"$f":"+H19*400","v":22400},2200,{"$f":"(O19*I19)-M19-N19","v":9817560},9809959.9921836592,{"$f":"P19-Q19","v":7600.0078163407743},"2025-02-18","Marc"]
[19,"2025-04-01",{"$f":"YEAR(Data[[#This Row],[Date_abattage]])","v":2025},{"$f":"TEXT(Data[[#This Row],[Date_abattage]],\"mmmm\")","v":"avril"},{"$f":"DAY(Data[[#This Row],[Date_abattage]])","v":1},94,"TAUHET",25,1920.8,null,null,null,null,null,2200,{"$f":"+H20*O20","v":55000},55000,{"$f":"P20-Q20","v":0},"2025-02-19","Marc"]
[20,"2025-04-08",{"$f":"YEAR(Data[[#This Row],[Date_abattage]])","v":2025},{"$f":"TEXT(Data[[#This Row],[Date_abattage]],\"mmmm\")","v":"avril"},{"$f":"DAY(Data[[#This Row],[Date_abattage]])","v":8},100,"FLAN",10,798.2,null,null,null,null,null,2200,22000,22000,0,"2025-02-20","Marc"]
[21,"2025-04-08",{"$f":"YEAR(Data[[#This Row],[Date_abattage]])","v":2025},{"$f":"TEXT(Data[[#This Row],[Date_abattage]],\"mmmm\")","v":"avril"},{"$f":"DAY(Data[[#This Row],[Date_abattage]])","v":8},100,"BAZ",8,591.4,null,null,null,null,null,2200,17600,17600,0,"2025-02-21","Marc"]
[22,"2025-04-08",{"$f":"YEAR(Data[[#This Row],[Date_abattage]])","v":2025},{"$f":"TEXT(Data[[#This Row],[Date_abattage]],\"mmmm\")","v":"avril"},{"$f":"DAY(Data[[#This Row],[Date_abattage]])","v":8},100,"FRANCOIS",6,450.8,null,null,null,null,null,2200,13200,13200,0,"2025-02-22","Marc"]
[23,"2025-04-15",{"$f":"YEAR(Data[[#This Row],[Date_abattage]])","v":2025},{"$f":"TEXT(Data[[#This Row],[Date_abattage]],\"mmmm\")","v":"avril"},{"$f":"DAY(Data[[#This Row],[Date_abattage]])","v":15},100,"NAZAIRE",3,226.4,null,null,null,null,null,2200,6600,6600,0,"2025-02-23","Marc"]
[24,"2025-04-15",{"$f":"YEAR(Data[[#This Row],[Date_abattage]])","v":2025},{"$f":"TEXT(Data[[#This Row],[Date_abattage]],\"mmmm\")","v":"avril"},{"$f":"DAY(Data[[#This Row],[Date_abattage]])","v":15},100,"HUGUETTE",10,736,null,null,null,null,null,2200,22000,22000,0,"2025-02-24","Marc"]
[25,"2025-04-15",{"$f":"YEAR(Data[[#This Row],[Date_abattage]])","v":2025},{"$f":"TEXT(Data[[#This Row],[Date_abattage]],\"mmmm\")","v":"avril"},{"$f":"DAY(Data[[#This Row],[Date_abattage]])","v":15},100,"TAITAI",5,379,null,null,null,null,null,2200,11000,11000,0,"2025-02-25","Marc"]
[26,"2025-04-15",{"$f":"YEAR(Data[[#This Row],[Date_abattage]])","v":2025},{"$f":"TEXT(Data[[#This Row],[Date_abattage]],\"mmmm\")","v":"avril"},{"$f":"DAY(Data[[#This Row],[Date_abattage]])","v":15},100,"VICTORINE",15,1150.8,null,null,null,null,null,2200,33000,33000,0,"2025-02-26","Marc"]
[27,"2025-04-15",{"$f":"YEAR(Data[[#This Row],[Date_abattage]])","v":2025},{"$f":"TEXT(Data[[#This Row],[Date_abattage]],\"mmmm\")","v":"avril"},{"$f":"DAY(Data[[#This Row],[Date_abattage]])","v":15},100,"BCS",5,359.4,null,null,null,null,null,2200,11000,11000,0,"2025-02-27","Marc"]
[28,"2025-04-16",{"$f":"YEAR(Data[[#This Row],[Date_abattage]])","v":2025},{"$f":"TEXT(Data[[#This Row],[Date_abattage]],\"mmmm\")","v":"avril"},{"$f":"DAY(Data[[#This Row],[Date_abattage]])","v":16},100,"TAUHET",25,1903.4,null,null,null,null,null,2200,55000,55000,0,"2025-02-28","Jean"]
[29,"2025-04-16",{"$f":"YEAR(Data[[#This Row],[Date_abattage]])","v":2025},{"$f":"TEXT(Data[[#This Row],[Date_abattage]],\"mmmm\")","v":"avril"},{"$f":"DAY(Data[[#This Row],[Date_abattage]])","v":16},100,"ADOU",5,366.8,null,null,null,null,null,2200,11000,11000,{"$f":"P30-Q30","v":0},"2025-03-01","Jean"]
[30,"2025-04-16",{"$f":"YEAR(Data[[#This Row],[Date_abattage]])","v":2025},{"$f":"TEXT(Data[[#This Row],[Date_abattage]],\"mmmm\")","v":"avril"},{"$f":"DAY(Data[[#This Row],[Date_abattage]])","v":16},100,"VANESSA",3,232.4,null,null,null,null,null,2200,6600,6600,0,"2025-03-02","Jean"]
[31,"2025-04-16",{"$f":"YEAR(Data[[#This Row],[Date_abattage]])","v":2025},{"$f":"TEXT(Data[[#This Row],[Date_abattage]],\"mmmm\")","v":"avril"},{"$f":"DAY(Data[[#This Row],[Date_abattage]])","v":16},{"$f":"70+1","v":71},"BAZ",2,147.19999999999999,null,null,null,null,null,2200,4400,4400,0,"2025-03-03","Jean"]
[32,"2025-04-16",{"$f":"YEAR(Data[[#This Row],[Date_abattage]])","v":2025},{"$f":"TEXT(Data[[#This Row],[Date_abattage]],\"mmmm\")","v":"avril"},{"$f":"DAY(Data[[#This Row],[Date_abattage]])","v":16},{"$f":"70+1","v":71},"TAITAI",5,380,null,null,null,null,null,2200,11000,11000,0,"2025-03-04","Jean"]
[33,"2025-04-25",{"$f":"YEAR(Data[[#This Row],[Date_abattage]])","v":2025},{"$f":"TEXT(Data[[#This Row],[Date_abattage]],\"mmmm\")","v":"avril"},{"$f":"DAY(Data[[#This Row],[Date_abattage]])","v":25},71,"VICTORINE",20,1475.8,null,null,null,null,null,2200,44000,44000,0,"2025-03-05","Jean"]
[34,"2025-04-25",{"$f":"YEAR(Data[[#This Row],[Date_abattage]])","v":2025},{"$f":"TEXT(Data[[#This Row],[Date_abattage]],\"mmmm\")","v":"avril"},{"$f":"DAY(Data[[#This Row],[Date_abattage]])","v":25},71,"TAITAI",5,366.2,null,null,null,null,null,2200,11000,11000,0,"2025-03-06","Jean"]
[35,"2025-04-25",{"$f":"YEAR(Data[[#This Row],[Date_abattage]])","v":2025},{"$f":"TEXT(Data[[#This Row],[Date_abattage]],\"mmmm\")","v":"avril"},{"$f":"DAY(Data[[#This Row],[Date_abattage]])","v":25},71,"HUGUETTE",5,368.6,null,null,null,null,null,2200,11000,11000,0,"2025-03-07","Jean"]
[36,"2025-04-25",{"$f":"YEAR(Data[[#This Row],[Date_abattage]])","v":2025},{"$f":"TEXT(Data[[#This Row],[Date_abattage]],\"mmmm\")","v":"avril"},{"$f":"DAY(Data[[#This Row],[Date_abattage]])","v":25},71,"FLAN",10,751.6,null,null,null,null,null,2200,22000,22000,0,"2025-03-08","Jean"]
[37,"2025-04-25",{"$f":"YEAR(Data[[#This Row],[Date_abattage]])","v":2025},{"$f":"TEXT(Data[[#This Row],[Date_abattage]],\"mmmm\")","v":"avril"},{"$f":"DAY(Data[[#This Row],[Date_abattage]])","v":25},71,"VANESSA",3,223,null,null,null,null,null,2200,6600,6600,0,"2025-03-09","Jean"]
[38,"2025-04-25",{"$f":"YEAR(Data[[#This Row],[Date_abattage]])","v":2025},{"$f":"TEXT(Data[[#This Row],[Date_abattage]],\"mmmm\")","v":"avril"},{"$f":"DAY(Data[[#This Row],[Date_abattage]])","v":25},71,"INNOCENT",1,209.4,null,null,null,null,null,2200,2200,2200,0,"2025-03-10","Jean"]
[39,"2025-04-25",{"$f":"YEAR(Data[[#This Row],[Date_abattage]])","v":2025},{"$f":"TEXT(Data[[#This Row],[Date_abattage]],\"mmmm\")","v":"avril"},{"$f":"DAY(Data[[#This Row],[Date_abattage]])","v":25},71,"INNOCENT",5,392.6,null,null,null,null,null,2200,11000,11000,0,"2025-03-11","Jean"]
[40,"2025-05-02",{"$f":"YEAR(Data[[#This Row],[Date_abattage]])","v":2025},{"$f":"TEXT(Data[[#This Row],[Date_abattage]],\"mmmm\")","v":"mai"},{"$f":"DAY(Data[[#This Row],[Date_abattage]])","v":2},71,"PARFAIT",5,379.4,null,null,null,null,null,2200,11000,11000,0,"2025-03-12","Jean"]
[41,"2025-05-02",{"$f":"YEAR(Data[[#This Row],[Date_abattage]])","v":2025},{"$f":"TEXT(Data[[#This Row],[Date_abattage]],\"mmmm\")","v":"mai"},{"$f":"DAY(Data[[#This Row],[Date_abattage]])","v":2},71,"PASCAL",11,830.4,null,null,null,null,null,2200,24200,24200,0,"2025-03-13","Jean"]
[42,"2025-05-02",{"$f":"YEAR(Data[[#This Row],[Date_abattage]])","v":2025},{"$f":"TEXT(Data[[#This Row],[Date_abattage]],\"mmmm\")","v":"mai"},{"$f":"DAY(Data[[#This Row],[Date_abattage]])","v":2},71,"FRANCOIS",4,260.8,null,null,null,null,null,2200,8800,8800,0,"2025-03-14","Jean"]
[43,"2025-05-02",{"$f":"YEAR(Data[[#This Row],[Date_abattage]])","v":2025},{"$f":"TEXT(Data[[#This Row],[Date_abattage]],\"mmmm\")","v":"mai"},{"$f":"DAY(Data[[#This Row],[Date_abattage]])","v":2},100,"NAZAIRE",2,138.6,null,null,null,null,null,2200,4400,4400,0,"2025-03-15","Jean"]
[44,"2025-05-02",{"$f":"YEAR(Data[[#This Row],[Date_abattage]])","v":2025},{"$f":"TEXT(Data[[#This Row],[Date_abattage]],\"mmmm\")","v":"mai"},{"$f":"DAY(Data[[#This Row],[Date_abattage]])","v":2},100,"FRANCOIS",3,225.2,null,null,null,null,null,2200,6600,6600,0,"2025-03-16","Jean"]
[45,"2025-05-02",{"$f":"YEAR(Data[[#This Row],[Date_abattage]])","v":2025},{"$f":"TEXT(Data[[#This Row],[Date_abattage]],\"mmmm\")","v":"mai"},{"$f":"DAY(Data[[#This Row],[Date_abattage]])","v":2},100,"BCS",8,585.4,null,null,null,null,null,2200,17600,17600,0,"2025-03-17","Jean"]
[46,"2025-05-02",{"$f":"YEAR(Data[[#This Row],[Date_abattage]])","v":2025},{"$f":"TEXT(Data[[#This Row],[Date_abattage]],\"mmmm\")","v":"mai"},{"$f":"DAY(Data[[#This Row],[Date_abattage]])","v":2},100,"ADOU",5,383.2,null,null,null,null,null,2200,11000,11000,0,"2025-03-18","Jean"]
[47,"2025-05-12",{"$f":"YEAR(Data[[#This Row],[Date_abattage]])","v":2025},{"$f":"TEXT(Data[[#This Row],[Date_abattage]],\"mmmm\")","v":"mai"},{"$f":"DAY(Data[[#This Row],[Date_abattage]])","v":12},100,"VICTORINE",6,415.6,null,null,null,null,null,2200,13200,13200,0,"2025-03-19","Jean"]
[48,"2025-05-12",{"$f":"YEAR(Data[[#This Row],[Date_abattage]])","v":2025},{"$f":"TEXT(Data[[#This Row],[Date_abattage]],\"mmmm\")","v":"mai"},{"$f":"DAY(Data[[#This Row],[Date_abattage]])","v":12},100,"BAZ",15,1124.4000000000001,null,null,null,null,null,2200,33000,33000,{"$f":"P49-Q49","v":0},"2025-03-20","Jean"]
[49,"2025-05-12",{"$f":"YEAR(Data[[#This Row],[Date_abattage]])","v":2025},{"$f":"TEXT(Data[[#This Row],[Date_abattage]],\"mmmm\")","v":"mai"},{"$f":"DAY(Data[[#This Row],[Date_abattage]])","v":12},100,"VANESSA",3,231.4,null,null,null,null,null,2200,6600,6600,0,"2025-03-21","Jean"]
[50,"2025-05-12",{"$f":"YEAR(Data[[#This Row],[Date_abattage]])","v":2025},{"$f":"TEXT(Data[[#This Row],[Date_abattage]],\"mmmm\")","v":"mai"},{"$f":"DAY(Data[[#This Row],[Date_abattage]])","v":12},100,"TAUHET",30,2187.1999999999998,null,null,null,null,null,2200,66000,66000,0,"2025-03-22","Jean"]
[51,"2025-05-12",{"$f":"YEAR(Data[[#This Row],[Date_abattage]])","v":2025},{"$f":"TEXT(Data[[#This Row],[Date_abattage]],\"mmmm\")","v":"mai"},{"$f":"DAY(Data[[#This Row],[Date_abattage]])","v":12},100,"GID",25,1834.4,1820,{"$f":"I52-J52","v":14.400000000000091},{"$f":"+K52/I52","v":7.8499781945050636E-3},{"$f":"+H52*200","v":5000},{"$f":"+H52*400","v":10000},2200,{"$f":"+(O52*I52)-M52-N52","v":4020680},3930679.9921500199,{"$f":"P52-Q52","v":90000.007849980146},"2025-03-23","Jean"]
[52,"2025-05-12",{"$f":"YEAR(Data[[#This Row],[Date_abattage]])","v":2025},{"$f":"TEXT(Data[[#This Row],[Date_abattage]],\"mmmm\")","v":"mai"},{"$f":"DAY(Data[[#This Row],[Date_abattage]])","v":12},{"$f":"80+12","v":92},"HUGUETTE",8,593,null,null,null,null,null,2200,{"$f":"+H53*O53","v":17600},17600,0,"2025-03-24","Jean"]
[53,"2025-05-12",{"$f":"YEAR(Data[[#This Row],[Date_abattage]])","v":2025},{"$f":"TEXT(Data[[#This Row],[Date_abattage]],\"mmmm\")","v":"mai"},{"$f":"DAY(Data[[#This Row],[Date_abattage]])","v":12},{"$f":"80+12","v":92},"TAITAI",5,378,null,null,null,null,null,2200,11000,11000,0,"2025-03-25","Jean"]
[54,"2025-05-12",{"$f":"YEAR(Data[[#This Row],[Date_abattage]])","v":2025},{"$f":"TEXT(Data[[#This Row],[Date_abattage]],\"mmmm\")","v":"mai"},{"$f":"DAY(Data[[#This Row],[Date_abattage]])","v":12},92,"VICTORINE",5,380.8,null,null,null,null,null,2200,11000,11000,0,"2025-03-26","Jean"]
[55,"2025-05-12",{"$f":"YEAR(Data[[#This Row],[Date_abattage]])","v":2025},{"$f":"TEXT(Data[[#This Row],[Date_abattage]],\"mmmm\")","v":"mai"},{"$f":"DAY(Data[[#This Row],[Date_abattage]])","v":12},92,"PARFAIT",5,357.4,null,null,null,null,null,2200,11000,11000,0,"2025-03-27","Jean"]
[56,"2025-05-12",{"$f":"YEAR(Data[[#This Row],[Date_abattage]])","v":2025},{"$f":"TEXT(Data[[#This Row],[Date_abattage]],\"mmmm\")","v":"mai"},{"$f":"DAY(Data[[#This Row],[Date_abattage]])","v":12},92,"VANESSA",3,220,null,null,null,null,null,2200,6600,6600,0,"2025-03-28","Jean"]
[57,"2025-05-19",{"$f":"YEAR(Data[[#This Row],[Date_abattage]])","v":2025},{"$f":"TEXT(Data[[#This Row],[Date_abattage]],\"mmmm\")","v":"mai"},{"$f":"DAY(Data[[#This Row],[Date_abattage]])","v":19},92,"FRANCOIS",5,363.2,null,null,null,null,null,2200,11000,11000,0,"2025-03-29","Jean"]
[58,"2025-05-19",{"$f":"YEAR(Data[[#This Row],[Date_abattage]])","v":2025},{"$f":"TEXT(Data[[#This Row],[Date_abattage]],\"mmmm\")","v":"mai"},{"$f":"DAY(Data[[#This Row],[Date_abattage]])","v":19},92,"FLAN",5,368.4,null,null,null,null,null,2200,11000,11000,0,"2025-03-30","Jean"]
[59,"2025-05-19",{"$f":"YEAR(Data[[#This Row],[Date_abattage]])","v":2025},{"$f":"TEXT(Data[[#This Row],[Date_abattage]],\"mmmm\")","v":"mai"},{"$f":"DAY(Data[[#This Row],[Date_abattage]])","v":19},92,"GID",30,2955,null,null,null,{"$f":"+H60*200","v":6000},{"$f":"+H60*400","v":12000},2200,{"$f":"+(O60*H60)-M60-N60","v":48000},40000,8000,"2025-03-31","Jean"]
[60,"2025-05-19",{"$f":"YEAR(Data[[#This Row],[Date_abattage]])","v":2025},{"$f":"TEXT(Data[[#This Row],[Date_abattage]],\"mmmm\")","v":"mai"},{"$f":"DAY(Data[[#This Row],[Date_abattage]])","v":19},20,"KONE",3,228,null,null,null,null,null,2200,{"$f":"+H61*O61","v":6600},6600,0,"2025-04-01","Jean"]
[61,"2025-05-19",{"$f":"YEAR(Data[[#This Row],[Date_abattage]])","v":2025},{"$f":"TEXT(Data[[#This Row],[Date_abattage]],\"mmmm\")","v":"mai"},{"$f":"DAY(Data[[#This Row],[Date_abattage]])","v":19},20,"FLAN",10,729.4,null,null,null,null,null,2200,22000,22000,0,"2025-04-02","Jean"]
[62,"2025-05-19",{"$f":"YEAR(Data[[#This Row],[Date_abattage]])","v":2025},{"$f":"TEXT(Data[[#This Row],[Date_abattage]],\"mmmm\")","v":"mai"},{"$f":"DAY(Data[[#This Row],[Date_abattage]])","v":19},20,"FRANCOIS",3,222.6,null,null,null,null,null,2200,6600,6600,0,"2025-04-03","Jean"]
[63,"2025-05-28",{"$f":"YEAR(Data[[#This Row],[Date_abattage]])","v":2025},{"$f":"TEXT(Data[[#This Row],[Date_abattage]],\"mmmm\")","v":"mai"},{"$f":"DAY(Data[[#This Row],[Date_abattage]])","v":28},20,"VICTORINE",10,739,null,null,null,null,null,2200,22000,22000,0,"2025-04-04","Jean"]
[64,"2025-05-28",{"$f":"YEAR(Data[[#This Row],[Date_abattage]])","v":2025},{"$f":"TEXT(Data[[#This Row],[Date_abattage]],\"mmmm\")","v":"mai"},{"$f":"DAY(Data[[#This Row],[Date_abattage]])","v":28},20,"ADOU",5,369.6,null,null,null,null,null,2200,11000,11000,0,"2025-04-05","Jean"]
[65,"2025-05-28",{"$f":"YEAR(Data[[#This Row],[Date_abattage]])","v":2025},{"$f":"TEXT(Data[[#This Row],[Date_abattage]],\"mmmm\")","v":"mai"},{"$f":"DAY(Data[[#This Row],[Date_abattage]])","v":28},20,"YAH LOUISE",3,269.8,null,null,null,null,null,2200,6600,6600,0,"2025-04-06","Jean"]
[66,"2025-05-28",{"$f":"YEAR(Data[[#This Row],[Date_abattage]])","v":2025},{"$f":"TEXT(Data[[#This Row],[Date_abattage]],\"mmmm\")","v":"mai"},{"$f":"DAY(Data[[#This Row],[Date_abattage]])","v":28},20,"ALEXIS SOCOCE",15,1070.4000000000001,null,null,null,null,null,2200,33000,33000,0,"2025-04-07","Jean"]
[67,"2025-05-28",{"$f":"YEAR(Data[[#This Row],[Date_abattage]])","v":2025},{"$f":"TEXT(Data[[#This Row],[Date_abattage]],\"mmmm\")","v":"mai"},{"$f":"DAY(Data[[#This Row],[Date_abattage]])","v":28},100,"BAZ",10,736.6,null,null,null,null,null,2200,22000,22000,0,"2025-04-08","Jean"]
[68,"2025-05-28",{"$f":"YEAR(Data[[#This Row],[Date_abattage]])","v":2025},{"$f":"TEXT(Data[[#This Row],[Date_abattage]],\"mmmm\")","v":"mai"},{"$f":"DAY(Data[[#This Row],[Date_abattage]])","v":28},100,"VANESSA",3,211.8,null,null,null,null,null,2200,6600,6600,0,"2025-04-09","Jean"]
[69,"2025-05-28",{"$f":"YEAR(Data[[#This Row],[Date_abattage]])","v":2025},{"$f":"TEXT(Data[[#This Row],[Date_abattage]],\"mmmm\")","v":"mai"},{"$f":"DAY(Data[[#This Row],[Date_abattage]])","v":28},100,"BCS",5,399,null,null,null,null,null,2200,11000,11000,0,"2025-04-10","Jean"]
[70,"2025-05-28",{"$f":"YEAR(Data[[#This Row],[Date_abattage]])","v":2025},{"$f":"TEXT(Data[[#This Row],[Date_abattage]],\"mmmm\")","v":"mai"},{"$f":"DAY(Data[[#This Row],[Date_abattage]])","v":28},100,"TOUCHARD",2,144.6,null,null,null,null,null,2200,4400,4400,0,"2025-04-11","Jean"]
[71,"2025-05-28",{"$f":"YEAR(Data[[#This Row],[Date_abattage]])","v":2025},{"$f":"TEXT(Data[[#This Row],[Date_abattage]],\"mmmm\")","v":"mai"},{"$f":"DAY(Data[[#This Row],[Date_abattage]])","v":28},100,"HUGUETTE",5,366.4,null,null,null,null,null,2200,11000,11000,0,"2025-04-12","Jean"]
[72,"2025-05-28",{"$f":"YEAR(Data[[#This Row],[Date_abattage]])","v":2025},{"$f":"TEXT(Data[[#This Row],[Date_abattage]],\"mmmm\")","v":"mai"},{"$f":"DAY(Data[[#This Row],[Date_abattage]])","v":28},100,"TAITAI",5,362.8,null,null,null,null,null,2200,11000,11000,0,"2025-04-13","Jean"]
[73,"2025-05-28",{"$f":"YEAR(Data[[#This Row],[Date_abattage]])","v":2025},{"$f":"TEXT(Data[[#This Row],[Date_abattage]],\"mmmm\")","v":"mai"},{"$f":"DAY(Data[[#This Row],[Date_abattage]])","v":28},100,"FLAN",10,739.4,null,null,null,null,null,2200,22000,22000,0,"2025-04-14","Jean"]
[74,"2025-05-28",{"$f":"YEAR(Data[[#This Row],[Date_abattage]])","v":2025},{"$f":"TEXT(Data[[#This Row],[Date_abattage]],\"mmmm\")","v":"mai"},{"$f":"DAY(Data[[#This Row],[Date_abattage]])","v":28},100,"GID",25,1818.8,1804.4,{"$f":"+I75-J75","v":14.399999999999864},{"$f":"+K75/I75","v":7.9173081152407437E-3},{"$f":"+H75*200","v":5000},{"$f":"+H75*400","v":10000},2200,{"$f":"+(O75*I75)-M75-N75","v":3986360},3986359.9920826899,7.9173101112246513E-3,"2025-04-15","Jean"]
[75,"2025-06-07",{"$f":"YEAR(Data[[#This Row],[Date_abattage]])","v":2025},{"$f":"TEXT(Data[[#This Row],[Date_abattage]],\"mmmm\")","v":"juin"},{"$f":"DAY(Data[[#This Row],[Date_abattage]])","v":7},100,"TAUHET",30,2367,null,null,null,null,null,2200,{"$f":"+H76*O76","v":66000},66000,0,"2025-04-16","Jean"]
[76,"2025-06-07",{"$f":"YEAR(Data[[#This Row],[Date_abattage]])","v":2025},{"$f":"TEXT(Data[[#This Row],[Date_abattage]],\"mmmm\")","v":"juin"},{"$f":"DAY(Data[[#This Row],[Date_abattage]])","v":7},20,"FLAN",10,722,null,null,null,null,null,2200,22000,22000,0,"2025-04-17","Jean"]
[77,"2025-06-07",{"$f":"YEAR(Data[[#This Row],[Date_abattage]])","v":2025},{"$f":"TEXT(Data[[#This Row],[Date_abattage]],\"mmmm\")","v":"juin"},{"$f":"DAY(Data[[#This Row],[Date_abattage]])","v":7},20,"TAITAI",10,721.4,null,null,null,null,null,2200,22000,22000,0,"2025-04-18","Jean"]
[78,"2025-06-07",{"$f":"YEAR(Data[[#This Row],[Date_abattage]])","v":2025},{"$f":"TEXT(Data[[#This Row],[Date_abattage]],\"mmmm\")","v":"juin"},{"$f":"DAY(Data[[#This Row],[Date_abattage]])","v":7},20,"NAZAIRE",1,73.2,null,null,null,null,null,2200,2200,2200,0,"2025-04-19","Jean"]
[79,"2025-06-07",{"$f":"YEAR(Data[[#This Row],[Date_abattage]])","v":2025},{"$f":"TEXT(Data[[#This Row],[Date_abattage]],\"mmmm\")","v":"juin"},{"$f":"DAY(Data[[#This Row],[Date_abattage]])","v":7},92,"BAZ",6,426.2,null,null,null,null,null,2200,13200,13200,0,"2025-04-20","Jean"]
[80,"2025-06-07",{"$f":"YEAR(Data[[#This Row],[Date_abattage]])","v":2025},{"$f":"TEXT(Data[[#This Row],[Date_abattage]],\"mmmm\")","v":"juin"},{"$f":"DAY(Data[[#This Row],[Date_abattage]])","v":7},92,"VANESSA",3,216,null,null,null,null,null,2200,{"$f":"+H81*O81","v":6600},6600,{"$f":"P81-Q81","v":0},"2025-04-21","Jean"]
[81,"2025-06-07",{"$f":"YEAR(Data[[#This Row],[Date_abattage]])","v":2025},{"$f":"TEXT(Data[[#This Row],[Date_abattage]],\"mmmm\")","v":"juin"},{"$f":"DAY(Data[[#This Row],[Date_abattage]])","v":7},92,"NAZAIRE",1,73,null,null,null,null,null,2200,2200,2200,0,"2025-04-22","Jean"]
[82,"2025-06-07",{"$f":"YEAR(Data[[#This Row],[Date_abattage]])","v":2025},{"$f":"TEXT(Data[[#This Row],[Date_abattage]],\"mmmm\")","v":"juin"},{"$f":"DAY(Data[[#This Row],[Date_abattage]])","v":7},92,"HUGUETTE",5,366.4,null,null,null,null,null,2200,11000,11000,0,"2025-04-23","Jean"]
[83,"2025-06-07",{"$f":"YEAR(Data[[#This Row],[Date_abattage]])","v":2025},{"$f":"TEXT(Data[[#This Row],[Date_abattage]],\"mmmm\")","v":"juin"},{"$f":"DAY(Data[[#This Row],[Date_abattage]])","v":7},92,"TAITAI",5,365,null,null,null,null,null,2200,11000,11000,0,"2025-04-24","Jean"]
[84,"2025-06-07",{"$f":"YEAR(Data[[#This Row],[Date_abattage]])","v":2025},{"$f":"TEXT(Data[[#This Row],[Date_abattage]],\"mmmm\")","v":"juin"},{"$f":"DAY(Data[[#This Row],[Date_abattage]])","v":7},92,"VICTORINE",15,1111,null,null,null,null,null,2200,33000,33000,0,"2025-04-25","Jean"]
[85,"2025-06-07",{"$f":"YEAR(Data[[#This Row],[Date_abattage]])","v":2025},{"$f":"TEXT(Data[[#This Row],[Date_abattage]],\"mmmm\")","v":"juin"},{"$f":"DAY(Data[[#This Row],[Date_abattage]])","v":7},92,"TAUHET",26,2269.8000000000002,null,null,null,null,null,2200,57200,57200,0,"2025-04-26","Jean"]
[86,"2025-06-07",{"$f":"YEAR(Data[[#This Row],[Date_abattage]])","v":2025},{"$f":"TEXT(Data[[#This Row],[Date_abattage]],\"mmmm\")","v":"juin"},{"$f":"DAY(Data[[#This Row],[Date_abattage]])","v":7},92,"GID",35,2928.2,2900,{"$f":"+I87-J87","v":28.199999999999818},{"$f":"+K87/I87","v":9.6304897206474348E-3},{"$f":"+H87*200","v":7000},{"$f":"+H87*400","v":14000},2200,{"$f":"+(O87*I87)-M87-N87","v":6421040},6414039.9903695099,7000.0096304900944,"2025-04-27","Jean"]

{"sheet":"Fitre","index":1,"n_rows":34,"n_cols":65,"rows_kept":34,"cut":false,"hidden":false,"merged":[]}
[]
[]
[null,"ANNEE",2025,null,"MOIS","Juin",null,"JOURS",7]
[null,null,null,null,null,null,null,null,null,null,null,null,null,null,null,null,null,null,null,null,null,null,null,null,null,null,null,null,null,null,null,null,null,null,null,null,null,null,null,null,null,null,null,null,null,null,null,null,null,null,null,null,null,null,null,null,null,null,null,null,null,null,null,1,"Janvier"]
[null,null,null,null,null,null,null,null,null,null,null,null,null,null,null,null,null,null,null,null,null,null,null,null,null,null,null,null,null,null,null,null,null,null,null,null,null,null,null,null,null,null,null,null,null,null,null,null,null,null,null,null,null,null,null,null,null,null,null,null,null,null,null,2,"Février"]
[null,null,null,null,null,null,null,null,null,null,null,null,null,null,null,null,null,null,null,null,null,null,null,null,null,null,null,null,null,null,null,null,null,null,null,null,null,null,null,null,null,null,null,null,null,null,null,null,null,null,null,null,null,null,null,null,null,null,null,null,null,null,null,3,"Mars"]
["ID_Abattage","Date_abattage","Année","Mois","Jours","Qté_livrée","Acheteur","Qté_carcasses_SIVAC","Poids_net_kg","Poids net GID (kg) 2","ECART (Kg)","Taux de ressuage","FIRCA","INTER PORCI","Prix_unitaire_FCFA","Prix_global_FCFA","Avance_FCFA","Reste_a_payer_FCFA","Delai_paiement","Pilote_SICS",null,null,null,null,null,null,null,null,null,null,null,null,null,null,null,null,null,null,null,null,null,null,null,null,null,null,null,null,null,null,null,null,null,null,null,null,null,null,null,null,null,null,null,4,"Avril"]
[{"$f":"_xlfn._xlws.FILTER(Data[],(Data[Année]=C3)*(Data[Mois]=F3)*(Data[Jours]=I3),\"\")","v":75},"2025-06-07",2025,"juin",7,100,"TAUHET",30,2367,0,0,0,0,0,2200,66000,66000,0,45763,"Jean",null,null,null,null,null,null,null,null,null,null,null,null,null,null,null,null,null,null,null,null,null,null,null,null,null,null,null,null,null,null,null,null,null,null,null,null,null,null,null,null,null,null,null,5,"Mai"]
[76,"2025-06-07",2025,"juin",7,20,"FLAN",10,722,0,0,0,0,0,2200,22000,22000,0,45764,"Jean",null,null,null,null,null,null,null,null,null,null,null,null,null,null,null,null,null,null,null,null,null,null,null,null,null,null,null,null,null,null,null,null,null,null,null,null,null,null,null,null,null,null,null,6,"Juin"]
[77,"2025-06-07",2025,"juin",7,20,"TAITAI",10,721.4,0,0,0,0,0,2200,22000,22000,0,45765,"Jean",null,null,null,null,null,null,null,null,null,null,null,null,null,null,null,null,null,null,null,null,null,null,null,null,null,null,null,null,null,null,null,null,null,null,null,null,null,null,null,null,null,null,null,7,"Juillet"]
[78,"2025-06-07",2025,"juin",7,20,"NAZAIRE",1,73.2,0,0,0,0,0,2200,2200,2200,0,45766,"Jean",null,null,null,null,null,null,null,null,null,null,null,null,null,null,null,null,null,null,null,null,null,null,null,null,null,null,null,null,null,null,null,null,null,null,null,null,null,null,null,null,null,null,null,8,"Août"]
[79,"2025-06-07",2025,"juin",7,92,"BAZ",6,426.2,0,0,0,0,0,2200,13200,13200,0,45767,"Jean",null,null,null,null,null,null,null,null,null,null,null,null,null,null,null,null,null,null,null,null,null,null,null,null,null,null,null,null,null,null,null,null,null,null,null,null,null,null,null,null,null,null,null,9,"Septembre"]
[80,"2025-06-07",2025,"juin",7,92,"VANESSA",3,216,0,0,0,0,0,2200,6600,6600,0,45768,"Jean",null,null,null,null,null,null,null,null,null,null,null,null,null,null,null,null,null,null,null,null,null,null,null,null,null,null,null,null,null,null,null,null,null,null,null,null,null,null,null,null,null,null,null,10,"Octobre"]
[81,"2025-06-07",2025,"juin",7,92,"NAZAIRE",1,73,0,0,0,0,0,2200,2200,2200,0,45769,"Jean",null,null,null,null,null,null,null,null,null,null,null,null,null,null,null,null,null,null,null,null,null,null,null,null,null,null,null,null,null,null,null,null,null,null,null,null,null,null,null,null,null,null,null,11,"Novembre"]
[82,"2025-06-07",2025,"juin",7,92,"HUGUETTE",5,366.4,0,0,0,0,0,2200,11000,11000,0,45770,"Jean",null,null,null,null,null,null,null,null,null,null,null,null,null,null,null,null,null,null,null,null,null,null,null,null,null,null,null,null,null,null,null,null,null,null,null,null,null,null,null,null,null,null,null,12,"Décembre"]
[83,"2025-06-07",2025,"juin",7,92,"TAITAI",5,365,0,0,0,0,0,2200,11000,11000,0,45771,"Jean",null,null,null,null,null,null,null,null,null,null,null,null,null,null,null,null,null,null,null,null,null,null,null,null,null,null,null,null,null,null,null,null,null,null,null,null,null,null,null,null,null,null,null,13]
[84,"2025-06-07",2025,"juin",7,92,"VICTORINE",15,1111,0,0,0,0,0,2200,33000,33000,0,45772,"Jean",null,null,null,null,null,null,null,null,null,null,null,null,null,null,null,null,null,null,null,null,null,null,null,null,null,null,null,null,null,null,null,null,null,null,null,null,null,null,null,null,null,null,null,14]
[85,"2025-06-07",2025,"juin",7,92,"TAUHET",26,2269.8000000000002,0,0,0,0,0,2200,57200,57200,0,45773,"Jean",null,null,null,null,null,null,null,null,null,null,null,null,null,null,null,null,null,null,null,null,null,null,null,null,null,null,null,null,null,null,null,null,null,null,null,null,null,null,null,null,null,null,null,15]
[86,"2025-06-07",2025,"juin",7,92,"GID",35,2928.2,2900,28.199999999999818,9.6304897206474348E-3,7000,14000,2200,6421040,6414039.9903695099,7000.0096304900944,45774,"Jean",null,null,null,null,null,null,null,null,null,null,null,null,null,null,null,null,null,null,null,null,null,null,null,null,null,null,null,null,null,null,null,null,null,null,null,null,null,null,null,null,null,null,null,16]
[null,null,null,null,null,null,null,null,null,null,null,null,null,null,null,null,null,null,null,null,null,null,null,null,null,null,null,null,null,null,null,null,null,null,null,null,null,null,null,null,null,null,null,null,null,null,null,null,null,null,null,null,null,null,null,null,null,null,null,null,null,null,null,17]
[null,null,null,null,null,null,null,null,null,null,null,null,null,null,null,null,null,null,null,null,null,null,null,null,null,null,null,null,null,null,null,null,null,null,null,null,null,null,null,null,null,null,null,null,null,null,null,null,null,null,null,null,null,null,null,null,null,null,null,null,null,null,null,18]
[null,null,null,null,null,null,null,null,null,null,null,null,null,null,null,null,null,null,null,null,null,null,null,null,null,null,null,null,null,null,null,null,null,null,null,null,null,null,null,null,null,null,null,null,null,null,null,null,null,null,null,null,null,null,null,null,null,null,null,null,null,null,null,19]
[null,null,null,null,null,null,null,null,null,null,null,null,null,null,null,null,null,null,null,null,null,null,null,null,null,null,null,null,null,null,null,null,null,null,null,null,null,null,null,null,null,null,null,null,null,null,null,null,null,null,null,null,null,null,null,null,null,null,null,null,null,null,null,20]
[null,null,null,null,null,null,null,null,null,null,null,null,null,null,null,null,null,null,null,null,null,null,null,null,null,null,null,null,null,null,null,null,null,null,null,null,null,null,null,null,null,null,null,null,null,null,null,null,null,null,null,null,null,null,null,null,null,null,null,null,null,null,null,21]
[null,null,null,null,null,null,null,null,null,null,null,null,null,null,null,null,null,null,null,null,null,null,null,null,null,null,null,null,null,null,null,null,null,null,null,null,null,null,null,null,null,null,null,null,null,null,null,null,null,null,null,null,null,null,null,null,null,null,null,null,null,null,null,22]
[null,null,null,null,null,null,null,null,null,null,null,null,null,null,null,null,null,null,null,null,null,null,null,null,null,null,null,null,null,null,null,null,null,null,null,null,null,null,null,null,null,null,null,null,null,null,null,null,null,null,null,null,null,null,null,null,null,null,null,null,null,null,null,23]
[null,null,null,null,null,null,null,null,null,null,null,null,null,null,null,null,null,null,null,null,null,null,null,null,null,null,null,null,null,null,null,null,null,null,null,null,null,null,null,null,null,null,null,null,null,null,null,null,null,null,null,null,null,null,null,null,null,null,null,null,null,null,null,24]
[null,null,null,null,null,null,null,null,null,null,null,null,null,null,null,null,null,null,null,null,null,null,null,null,null,null,null,null,null,null,null,null,null,null,null,null,null,null,null,null,null,null,null,null,null,null,null,null,null,null,null,null,null,null,null,null,null,null,null,null,null,null,null,25]
[null,null,null,null,null,null,null,null,null,null,null,null,null,null,null,null,null,null,null,null,null,null,null,null,null,null,null,null,null,null,null,null,null,null,null,null,null,null,null,null,null,null,null,null,null,null,null,null,null,null,null,null,null,null,null,null,null,null,null,null,null,null,null,26]
[null,null,null,null,null,null,null,null,null,null,null,null,null,null,null,null,null,null,null,null,null,null,null,null,null,null,null,null,null,null,null,null,null,null,null,null,null,null,null,null,null,null,null,null,null,null,null,null,null,null,null,null,null,null,null,null,null,null,null,null,null,null,null,27]
[null,null,null,null,null,null,null,null,null,null,null,null,null,null,null,null,null,null,null,null,null,null,null,null,null,null,null,null,null,null,null,null,null,null,null,null,null,null,null,null,null,null,null,null,null,null,null,null,null,null,null,null,null,null,null,null,null,null,null,null,null,null,null,28]
[null,null,null,null,null,null,null,null,null,null,null,null,null,null,null,null,null,null,null,null,null,null,null,null,null,null,null,null,null,null,null,null,null,null,null,null,null,null,null,null,null,null,null,null,null,null,null,null,null,null,null,null,null,null,null,null,null,null,null,null,null,null,null,29]
[null,null,null,null,null,null,null,null,null,null,null,null,null,null,null,null,null,null,null,null,null,null,null,null,null,null,null,null,null,null,null,null,null,null,null,null,null,null,null,null,null,null,null,null,null,null,null,null,null,null,null,null,null,null,null,null,null,null,null,null,null,null,null,30]
[null,null,null,null,null,null,null,null,null,null,null,null,null,null,null,null,null,null,null,null,null,null,null,null,null,null,null,null,null,null,null,null,null,null,null,null,null,null,null,null,null,null,null,null,null,null,null,null,null,null,null,null,null,null,null,null,null,null,null,null,null,null,null,31]

{"sheet":"TCD","index":2,"n_rows":25,"n_cols":35,"rows_kept":25,"cut":false,"hidden":false,"merged":[]}
[]
[null,"Chiffre d'affaire GLOBAL",null,null,null,"TOP 10 ACHETEURS","CHIFFRE D'AFFAIRE",null,null,"MOIS","Somme de Qté_livrée","CHIFFRE D'AFFAIRE",null,"MOIS","CHIFFRE D'AFFAIRE","Somme de Prix_global_FCFA2",null,"ACHETEUR","Somme à payer","Avance","Reste_a_payer",null,"MOIS","Somme de Qté_livrée"]
[null,33113240,null,null,null,"TAITAI",88000,null,null,"mars",248,7708600,null,1,10732560,10732560,null,"ADOU",33000,33000,0,null,"BAZ",557,null,{"$f":"OFFSET(F2,1,0,10,2)","v":"TAITAI"},88000,null,{"$f":"RANK(AA3,$AA$3:$AA$12)","v":10},null,"MOIS","Nombre de Pilote_SICS",null,"MOIS","Somme de Qté_livrée"]
[null,null,null,null,null,"BAZ",107800,null,null,"avril",1927,10204760,null,2,1003600,1003600,null,"ALEXIS SOCOCE",33000,33000,0,null,"VANESSA",555,null,"BAZ",107800,null,{"$f":"RANK(AA4,$AA$3:$AA$12)","v":9},null,"Jean",59,null,"BAZ",557]
[null,null,null,null,null,"FLAN",121000,null,null,"mai",2789,8532440,null,3,1640000,1640000,null,"BAZ",107800,107800,0,null,"TAITAI",546,null,"FLAN",121000,null,8,null,"Marc",12,null,"VANESSA",555]
[null,null,null,null,null,"VICTORINE",156200,null,null,"juin",896,6667440,null,7,6667440,6667440,null,"BCS",50600,50600,0,null,"TAUHET",486,null,"VICTORINE",156200,null,7,null,"Paul",15,null,"TAITAI",546]
[null,"Qté_carcasse_SIVAC",null,null,null,"TAUHET",299200,null,null,null,null,null,null,8,52800,52800,null,"Boucherie ",1500000,300000,1200000,null,"GID",478,null,"TAUHET",299200,null,6,null,null,null,null,"TAUHET",486]
[null,749,null,null,null,"Gros ",840000,null,null,null,null,null,null,10,920000,920000,null,"FLAN",121000,121000,0,null,"VICTORINE",475,null,"Gros ",840000,null,5]
[null,null,null,null,null,"Boucherie ",1500000,null,null,null,null,null,null,12,4196680,4196680,null,"FRANCOIS",46200,46200,0,null,"HUGUETTE",455,null,"Boucherie ",1500000,null,4]
[null,null,null,null,null,"SOCIAM",1920000,null,null,null,null,null,null,15,83600,83600,null,"GID",24293640,24181039.966785878,112600.03321412113,null,"FLAN",403,null,"SOCIAM",1920000,null,3]
[null,"Qtés_livrée",null,null,null,"Marché ",3420000,null,null,null,null,null,null,16,88000,88000,null,"Gros ",840000,300000,540000,null,"BCS",394,null,"Marché ",3420000,null,2]
[null,5860,null,null,null,"GID",24293640,null,null,null,null,null,null,17,1640000,1640000,null,"HUGUETTE",72600,72600,0,null,"FRANCOIS",383,null,"GID",24293640,null,1]
[null,null,null,null,null,null,null,null,null,null,null,null,null,19,105200,105200,null,"INNOCENT",13200,13200,0,null,"NAZAIRE",312]
[null,null,null,null,null,null,null,null,null,null,null,null,null,24,1728600,1728600,null,"KONE",6600,6600,0,null,"ADOU",220]
[null,"MOIS","Reste_a_payer","Avance_Fr",null,null,null,null,null,null,null,null,null,25,107800,107800,null,"Marché ",3420000,750000,2670000,null,"PARFAIT",163]
[null,"mars",5730000,1978600,null,null,null,null,null,null,null,null,null,28,4146960,4146960,null,"NAZAIRE",15400,15400,0,null,"INNOCENT",142]
[null,"avril",7600.0078163407743,10197159.992183659,null,null,null,null,null,null,null,null,null,null,null,null,null,"PARFAIT",22000,22000,0,null,"TOUCHARD",100]
[null,"mai",98000.015767290257,8434439.9842327088,null,null,null,null,null,null,null,null,null,null,null,null,null,"PASCAL",24200,24200,0,null,"PASCAL",71]
[null,"juin",7000.0096304900944,6660439.9903695099,null,null,null,null,null,null,null,null,null,null,null,null,null,"SOCIAM",1920000,600000,1320000,null,"Marché ",27]
[null,"Total général",5842600.0332141211,27270639.966785878,null,null,null,null,null,null,null,null,null,null,null,null,null,"TAITAI",88000,88000,0,null,"ALEXIS SOCOCE",20]
[null,null,null,null,null,null,null,null,null,null,null,null,null,null,null,null,null,"TAUHET",299200,299200,0,null,"YAH LOUISE",20]
[null,null,null,null,null,null,null,null,null,null,null,null,null,null,null,null,null,"TOUCHARD",4400,4400,0,null,"KONE",20]
[null,null,null,null,null,null,null,null,null,null,null,null,null,null,null,null,null,"VANESSA",39600,39600,0,null,"SOCIAM",15]
[null,null,null,null,null,null,null,null,null,null,null,null,null,null,null,null,null,"VICTORINE",156200,156200,0,null,"Boucherie ",12]
[null,null,null,null,null,null,null,null,null,null,null,null,null,null,null,null,null,"YAH LOUISE",6600,6600,0,null,"Gros ",6]

{"sheet":"Tableau de Bord","index":3,"n_rows":38,"n_cols":202,"rows_kept":38,"cut":false,"hidden":false,"merged":[]}
[]
[]
[]
[]
[]
[]
[]
[]
[]
[]
[]
[]
[]
[]
[]
[]
[]
[]
[]
[]
[]
[]
[]
[]
[]
[]
[]
[]
[]
[]
[]
[]
[]
[]
[]
[]
[]
[null,null,null,null,null,null,null,null,null,null,null,null,null,null,null,null,null,null,null,null,null,null,null,null,null,null,null,null,null,null,null,null,null,null,null,null,null,null,null,null,null,null,null,null,null,null,null,null,null,null,null,null,null,null,null,null,null,null,null,null,null,null,null,null,null,null,null,null,null,null,null,null,null,null,null,null,null,null,null,null,null,null,null,null,null,null,null,null,null,null,null,null,null,null,null,null,null,null,null,null,null,null,null,null,null,null,null,null,null,null,null,null,null,null,null,null,null,null,null,null,null,null,null,null,null,null,null,null,null,null,null,null,null,null,null,null,null,null,null,null,null,null,null,null,null,null,null,null,null,null,null,null,null,null,null,null,null,null,null,null,null,null,null,null,null,null,null,null,null,null,null,null,null,null,null,null,null,null,null,null,null,null,null,null,null,null,null,null,null,null,null,null,null,null,null,null,null,null,null,null,null,true]